fUST/lending_fUST_20250508
["ID","MTS","AMOUNT","RATE_DAILY","PERIOD"]
[360264805,1746677449467,-400.0,0.00012354,2]
[360264806,1746677449477,-400.0,0.00012354,2]
[360264807,1746677449487,-400.0,0.00012354,2]
[360264808,1746677449497,-400.0,0.00012354,2]
[360264809,1746677449506,-400.0,0.00012354,2]
[360264810,1746677449516,-400.0,0.00012354,2]
[360264811,1746677449525,-400.0,0.00012354,2]
[360264812,1746677449538,-400.0,0.00012354,2]
[360264813,1746677449548,-571.7,0.00012354,2]
[360264814,1746677449557,-400.0,0.00012354,2]
[360264815,1746677449567,-400.0,0.00012354,2]
[360264816,1746677449576,-400.0,0.00012354,2]
[360264817,1746677449586,-400.0,0.00012354,2]
[360264818,1746677449595,-400.0,0.00012354,2]
[360264819,1746677449605,-400.0,0.00012354,2]
[360264820,1746677449615,-400.0,0.00012354,2]
[360264821,1746677449624,-2241.52,0.00012354,2]
[360264822,1746677449634,-400.0,0.00012354,2]
[360264823,1746677449643,-400.0,0.00012354,2]
[360264824,1746677449653,-1568.28,0.00012354,2]
[360264825,1746677449662,-530.91,0.00012354,2]
[360264826,1746677449672,-709.24,0.00012354,2]
[360264827,1746677449682,-400.0,0.00012354,2]
[360264828,1746677449692,-400.0,0.00012354,2]
[360264829,1746677449701,-459.72,0.00012354,2]
[360264830,1746677449711,-412.7,0.00012354,2]
[360264831,1746677449720,-793.32,0.00012354,2]
[360264832,1746677449730,-400.0,0.00012354,2]
[360264833,1746677449741,-400.0,0.00012354,2]
[360264834,1746677449751,-400.0,0.00012354,2]
[360264835,1746677449760,-400.0,0.00012354,2]
[360264836,1746677449770,-400.0,0.00012354,2]
[360264837,1746677449782,-400.0,0.00012354,2]
[360264838,1746677449792,-495.13,0.00012354,2]
[360264839,1746677449801,-419.44,0.00012354,2]
[360264840,1746677449811,-580.35,0.00012354,2]
[360264841,1746677449820,-400.0,0.00012354,2]
[360264842,1746677449829,-400.0,0.00012354,2]
[360264843,1746677449839,-448.36,0.00012354,2]
[360264844,1746677449848,-417.71897292,0.00012354,2]
[360264845,1746677449858,-400.0,0.00012354,2]
[360264846,1746677449867,-400.0,0.00012354,2]
[360264847,1746677449878,-400.0,0.00012354,2]
[360264848,1746677449889,-400.0,0.00012354,2]
[360264849,1746677449899,-400.0,0.00012354,2]
[360264850,1746677449908,-925.97,0.00012354,2]
[360264851,1746677449918,-400.0,0.00012354,2]
[360264852,1746677449927,-400.0,0.00012354,2]
[360264853,1746677449937,-457.47,0.00012354,2]
[360264854,1746677449947,-540.43,0.00012354,2]
[360264855,1746677449956,-408.3797144,0.00012354,2]
[360264856,1746677449965,-400.0,0.00012354,2]
[360264857,1746677449975,-488.84,0.00012354,2]
[360264858,1746677449984,-1127.71,0.00012354,2]
[360264859,1746677449994,-2196.65487665,0.00012354,2]
[360264860,1746677450227,1000.0,0.00011945,2]
[360264863,1746677516970,413.77630124,0.00011945,2]
[360264864,1746677549566,538.72653322,0.00012,2]
[360264867,1746677607142,542.2145418,0.00011271,2]
[360264871,1746677904274,24900.0,0.00011268,2]
[360264872,1746678021545,333.41561543,0.00011976,2]
[360264877,1746678089053,1000.0,0.00011976,2]
[360264878,1746678161064,250.0,0.00011976,2]
[360264879,1746678221415,69650.81557608,0.00011972,2]
[360264893,1746678312380,2295.0,0.000118,2]
[360264894,1746678338725,1715.73777234,0.00011975,2]
[360264897,1746678388323,2644.077028,0.00011114,2]
[360264898,1746678419568,948.79184419,0.00011975,2]
[360264901,1746678481709,3103.54624133,0.00011976,2]
[360264905,1746678556188,1779.9970835,0.00011078,2]
[360264906,1746678575935,800.0,0.00011972,2]
[360264907,1746678576210,800.0,0.00011989,2]
[360264908,1746678576311,800.0,0.00011967,2]
[360264909,1746678576553,800.0,0.00011953,2]
[360264916,1746678632205,5380.67475669,0.00011944,2]
[360264946,1746678632739,-800.0,0.00012007,2]
[360264948,1746678632749,-800.0,0.00012022,2]
[360264950,1746678632759,-800.0,0.00012033,2]
[360264952,1746678632768,-800.0,0.00012033,2]
[360264954,1746678632779,-800.0,0.00012044,2]
[360264956,1746678632788,-1200.0,0.00012044,2]
[360264958,1746678632797,-3086.44479784,0.00012045,2]
[360264961,1746678632809,-17.10144349,0.00012045,2]
[360264962,1746678632819,-800.0,0.0001205,2]
[360264965,1746678632829,-300.0,0.00012069,2]
[360264967,1746678632840,-800.0,0.0001207,2]
[360264968,1746678632849,-256.5,0.00012074,2]
[360264970,1746678632859,-551.7,0.00012074,2]
[360264972,1746678632869,-400.0,0.00012074,2]
[360264974,1746678632879,-1462.0,0.00012074,2]
[360264976,1746678632888,-4256.8,0.00012074,2]
[360264978,1746678632899,-400.0,0.00012074,2]
[360264980,1746678632910,-1352.58,0.00012074,2]
[360264982,1746678632919,-400.0,0.00012074,2]
[360264984,1746678632929,-1193.01,0.00012074,2]
[360264986,1746678632938,-1621.45,0.00012075,2]
[360264988,1746678632948,-1301.17,0.00012075,2]
[360264990,1746678632958,-675.1,0.00012075,2]
[360264992,1746678632967,-766.1,0.00012075,2]
[360264994,1746678632977,-400.0,0.00012075,2]
[360264996,1746678632987,-400.0,0.00012075,2]
[360264998,1746678632997,-983.57,0.00012075,2]
[360265000,1746678633007,-778.4,0.00012075,2]
[360265002,1746678633018,-82.67064939,0.00012075,2]
[360265300,1746678641231,-400.0,0.00012074,2]
[360265302,1746678641241,-400.0,0.00012074,2]
[360265304,1746678641251,-400.0,0.00012074,2]
[360265306,1746678641260,-1916.39935061,0.00012075,2]
[360265308,1746678641270,-400.0,0.00012075,2]
[360265310,1746678641280,-400.0,0.00012075,2]
[360265312,1746678641289,-400.0,0.00012075,2]
[360265314,1746678641298,-226.45033319,0.00012075,2]
[360265338,1746678641517,-1304.54,0.00012075,2]
[360265340,1746678641529,-916.35,0.00012075,2]
[360265342,1746678641539,-1429.82,0.00012075,2]
[360265344,1746678641548,-708.51,0.00012075,2]
[360265345,1746678641558,-400.0,0.00012075,2]
[360265347,1746678641568,-400.0,0.00012075,2]
[360265348,1746678641578,-400.0,0.00012075,2]
[360265350,1746678641587,-1180.23,0.00012075,2]
[360265352,1746678641600,-704.15,0.00012075,2]
[360265354,1746678641610,-477.41,0.00012075,2]
[360265355,1746678641619,-3449.32,0.00012075,2]
[360265357,1746678641629,-400.0,0.00012075,2]
[360265359,1746678641641,-1085.25,0.00012075,2]
[360265361,1746678641650,-470.25,0.00012075,2]
[360265363,1746678641660,-1254.41,0.00012075,2]
[360265364,1746678641671,-400.0,0.00012075,2]
[360265366,1746678641681,-400.0,0.00012075,2]
[360265368,1746678641691,-645.34,0.00012075,2]
[360265369,1746678641700,-400.0,0.00012075,2]
[360265371,1746678641710,-417.91,0.00012075,2]
[360265373,1746678641719,-1190.77,0.00012075,2]
[360265375,1746678641728,-400.0,0.00012075,2]
[360265376,1746678641737,-1033.74,0.00012075,2]
[360265378,1746678641747,-400.0,0.00012076,2]
[360265380,1746678641756,-400.0,0.00012076,2]
[360265381,1746678641765,-400.0,0.00012076,2]
[360265383,1746678641775,-400.0,0.00012076,2]
[360265385,1746678641785,-400.0,0.00012076,2]
[360265387,1746678641795,-400.0,0.00012076,2]
[360265389,1746678641804,-524.06,0.00012076,2]
[360265391,1746678641813,-400.0,0.00012076,2]
[360265392,1746678641823,-400.0,0.00012076,2]
[360265394,1746678641832,-400.0,0.00012076,2]
[360265396,1746678641842,-1437.59,0.00012076,2]
[360265398,1746678641851,-2054.73,0.00012076,2]
[360265399,1746678641861,-486.67,0.00012076,2]
[360265401,1746678641870,-400.0,0.00012076,2]
[360265403,1746678641880,-421.41,0.00012076,2]
[360265405,1746678641889,-727.21,0.00012076,2]
[360265406,1746678641899,-650.14,0.00012076,2]
[360265408,1746678641908,-400.0,0.00012076,2]
[360265410,1746678641921,-400.0,0.00012076,2]
[360265412,1746678641931,-400.0,0.00012076,2]
[360265413,1746678641940,-400.0,0.00012076,2]
[360265415,1746678641951,-453.87,0.00012076,2]
[360265417,1746678641960,-531.98,0.00012076,2]
[360265419,1746678641970,-400.0,0.00012076,2]
[360265420,1746678641980,-400.0,0.00012076,2]
[360265422,1746678641990,-400.0,0.00012076,2]
[360265424,1746678641999,-400.0,0.00012076,2]
[360265425,1746678642009,-411.0,0.00012076,2]
[360265427,1746678642019,-400.0,0.00012076,2]
[360265429,1746678642029,-400.0,0.00012076,2]
[360265431,1746678642039,-400.0,0.00012076,2]
[360265433,1746678642048,-400.0,0.00012076,2]
[360265434,1746678642058,-400.0,0.00012076,2]
[360265436,1746678642068,-848.8,0.00012076,2]
[360265438,1746678642077,-448.11,0.00012076,2]
[360265440,1746678642088,-400.0,0.00012076,2]
[360265442,1746678642097,-1138.24,0.00012076,2]
[360265443,1746678642107,-495.39,0.00012076,2]
[360265445,1746678642116,-400.0,0.00012076,2]
[360265447,1746678642126,-1544.7,0.00012076,2]
[360265449,1746678642136,-400.0,0.00012076,2]
[360265450,1746678642146,-4826.06,0.00012076,2]
[360265452,1746678642156,-244.57162853,0.00012076,2]
[360265454,1746678642166,-781.04,0.00012076,2]
[360265456,1746678642175,-5212.54,0.00012076,2]
[360265458,1746678642185,-843.01,0.00012076,2]
[360265459,1746678642195,-628.22,0.00012076,2]
[360265461,1746678642207,-400.0,0.00012076,2]
[360265463,1746678642218,-2070.41,0.00012076,2]
[360265465,1746678642228,-509.77,0.00012076,2]
[360265467,1746678642238,-403.49667091,0.00012076,2]
[360265468,1746678642248,-655.78,0.00012076,2]
[360265469,1746678642257,-496.98342836,0.00012076,2]
[360265470,1746678642267,-400.0,0.00012076,2]
[360265472,1746678642276,-400.0,0.00012076,2]
[360265473,1746678642285,-400.0,0.00012076,2]
[360265474,1746678642295,-400.0,0.00012076,2]
[360265475,1746678642304,-1791.68,0.00012076,2]
[360265476,1746678642314,-400.0,0.00012076,2]
[360265477,1746678642324,-400.0,0.00012076,2]
[360265478,1746678642333,-589.36,0.00012076,2]
[360265479,1746678642342,-763.93,0.00012076,2]
[360265480,1746678642352,-400.0,0.00012076,2]
[360265481,1746678642361,-400.0,0.00012076,2]
[360265482,1746678642370,-400.0,0.00012076,2]
[360265483,1746678642379,-400.0,0.00012076,2]
[360265484,1746678642389,-1180.51,0.00012076,2]
[360265485,1746678642398,-654.3,0.00012076,2]
[360265486,1746678642407,-400.0,0.00012076,2]
[360265487,1746678642418,-400.0,0.00012076,2]
[360265488,1746678642427,-151.0,0.00012076,2]
[360265489,1746678642437,-1550.8,0.00012076,2]
[360265490,1746678642446,-588.51,0.00012076,2]
[360265491,1746678642455,-488.56268894,0.00012076,2]
[360265492,1746678642465,-685.71,0.00012076,2]
[360265493,1746678642474,-251.12132467,0.00012077,2]
[360265494,1746678642483,-400.0,0.00012077,2]
[360265495,1746678642493,-400.0,0.00012077,2]
[360265496,1746678642503,-400.0,0.00012077,2]
[360265497,1746678642513,-400.0,0.00012077,2]
[360265498,1746678642523,-400.0,0.00012077,2]
[360265499,1746678642533,-400.0,0.00012077,2]
[360265500,1746678642543,-400.0,0.00012077,2]
[360265501,1746678642553,-400.0,0.00012077,2]
[360265502,1746678642563,-400.0,0.00012077,2]
[360265503,1746678642572,-502.32828026,0.00012077,2]
[360265504,1746678642582,-400.0,0.00012077,2]
[360265505,1746678642593,-419.34,0.00012077,2]
[360265506,1746678642604,-425.25503202,0.00012077,2]
[360265507,1746678642615,-400.0,0.00012077,2]
[360265508,1746678642625,-400.0,0.00012077,2]
[360265509,1746678642635,-515.07,0.00012077,2]
[360265510,1746678642644,-400.0,0.00012077,2]
[360265511,1746678642654,-400.0,0.00012077,2]
[360265512,1746678642664,-513.33,0.00012077,2]
[360265513,1746678642676,-400.0,0.00012077,2]
[360265514,1746678642686,-798.87,0.00012077,2]
[360265515,1746678642696,-556.56,0.00012077,2]
[360265516,1746678642706,-400.0,0.00012077,2]
[360265517,1746678642716,-400.0,0.00012077,2]
[360265518,1746678642726,-414.68931965,0.00012077,2]
[360265519,1746678642736,-400.0,0.00012077,2]
[360265520,1746678642746,-400.0,0.00012077,2]
[360265521,1746678642756,-400.0,0.00012077,2]
[360265522,1746678642767,-400.0,0.00012077,2]
[360265523,1746678642776,-326.94644075,0.00012077,2]
[360265524,1746678642786,-400.0,0.00012077,2]
[360265525,1746678642796,-400.0,0.00012077,2]
[360265526,1746678642805,-400.0,0.00012077,2]
[360265527,1746678642815,-644.19,0.00012077,2]
[360265528,1746678642824,-400.0,0.00012077,2]
[360265529,1746678642834,-400.0,0.00012077,2]
[360265530,1746678642843,-400.0,0.00012077,2]
[360265531,1746678642854,-400.0,0.00012077,2]
[360265532,1746678642864,-400.0,0.00012077,2]
[360265533,1746678642873,-511.86101032,0.00012077,2]
[360265534,1746678642883,-400.0,0.00012077,2]
[360265535,1746678642893,-571.53,0.00012077,2]
[360265536,1746678642902,-438.12,0.00012077,2]
[360265537,1746678642912,-800.0,0.00012077,2]
[360265538,1746678642922,-400.0,0.00012077,2]
[360265539,1746678642931,-400.0,0.00012077,2]
[360265540,1746678642941,-409.8956269,0.00012077,2]
[360265541,1746678642951,-400.0,0.00012077,2]
[360265542,1746678642960,-400.0,0.00012077,2]
[360265543,1746678642970,-403.74140563,0.00012077,2]
[360265544,1746678642980,-403.51721552,0.00012077,2]
[360265545,1746678642989,-152.0,0.00012077,2]
[360265546,1746678642999,-899.67,0.00012078,2]
[360265547,1746678643009,-400.0,0.00012078,2]
[360265548,1746678643018,-400.0,0.00012078,2]
[360265549,1746678643029,-400.0,0.00012078,2]
[360265550,1746678643038,-467.68,0.00012078,2]
[360265551,1746678643048,-895.55,0.00012078,2]
[360265552,1746678643057,-400.0,0.00012078,2]
[360265553,1746678643066,-812.0,0.00012078,2]
[360265554,1746678643076,-400.0,0.00012078,2]
[360265555,1746678643086,-400.0,0.00012078,2]
[360265556,1746678643096,-4765.28,0.00012078,2]
[360265557,1746678643106,-436.74,0.00012078,2]
[360265558,1746678643116,-400.0,0.00012078,2]
[360265560,1746678643125,-835.68,0.00012078,2]
[360265562,1746678643135,-786.9,0.00012078,2]
[360265564,1746678643145,-757.79,0.00012078,2]
[360265566,1746678643155,-593.25,0.00012078,2]
[360265568,1746678643165,-1029.22,0.00012078,2]
[360265570,1746678643174,-2229.35,0.00012078,2]
[360265572,1746678643184,-556.71,0.00012078,2]
[360265574,1746678643193,-400.0,0.00012078,2]
[360265576,1746678643203,-1040.61,0.00012078,2]
[360265577,1746678643212,-151.0,0.00012078,2]
[360265578,1746678643221,-151.0,0.00012078,2]
[360265580,1746678643231,-800.0,0.0001208,2]
[360265581,1746678643240,-800.0,0.00012082,2]
[360265582,1746678643249,-800.0,0.0001209,2]
[360265583,1746678643259,-800.0,0.00012091,2]
[360265584,1746678643269,-800.0,0.00012104,2]
[360265586,1746678643279,-3103.54624133,0.00012113,2]
[360265587,1746678643288,-800.0,0.00012125,2]
[360265588,1746678643297,-800.0,0.00012134,2]
[360265589,1746678643307,-800.0,0.00012135,2]
[360265590,1746678643317,-800.0,0.00012136,2]
[360265591,1746678643326,-595.11959398,0.0001214,2]
[360265592,1746678643336,-800.0,0.00012156,2]
[360265594,1746678643345,-800.0,0.00012157,2]
[360265595,1746678643355,-800.0,0.00012159,2]
[360265596,1746678643365,-800.0,0.0001216,2]
[360265597,1746678643374,-800.0,0.00012163,2]
[360265599,1746678643383,-800.0,0.00012164,2]
[360265600,1746678643392,-800.0,0.0001217,2]
[360265602,1746678643402,-800.0,0.00012175,2]
[360265603,1746678643411,-800.0,0.0001218,2]
[360265605,1746678643420,-3103.54624133,0.00012182,2]
[360265607,1746678643429,-800.0,0.00012195,2]
[360265609,1746678643439,-800.0,0.00012211,2]
[360265612,1746678643448,-800.0,0.00012216,2]
[360265615,1746678643457,-800.0,0.00012217,2]
[360265617,1746678643466,-800.0,0.00012217,2]
[360265620,1746678643475,-1000.0,0.00012219,2]
[360265622,1746678643486,-800.0,0.0001222,2]
[360265624,1746678643495,-3103.54624133,0.0001225,2]
[360265626,1746678643504,-864.1522473,0.00012292,2]
[360265628,1746678643514,-312.73,0.00012329,2]
[360265630,1746678643525,-2000.0,0.00012329,2]
[360265632,1746678643534,-551.7,0.00012348,2]
[360265634,1746678643544,-400.0,0.00012348,2]
[360265636,1746678643553,-1462.0,0.00012348,2]
[360265638,1746678643563,-4256.8,0.00012348,2]
[360265640,1746678643572,-400.0,0.00012348,2]
[360265642,1746678643582,-1352.58,0.00012348,2]
[360265644,1746678643594,-400.0,0.00012348,2]
[360265646,1746678643603,-1193.01,0.00012348,2]
[360265648,1746678643613,-400.0,0.00012348,2]
[360265651,1746678643623,-400.0,0.00012348,2]
[360265653,1746678643632,-400.0,0.00012348,2]
[360265655,1746678643643,-1301.17,0.00012349,2]
[360265657,1746678643652,-675.1,0.00012349,2]
[360265659,1746678643662,-766.1,0.00012349,2]
[360265661,1746678643672,-400.0,0.00012349,2]
[360265663,1746678643682,-983.57,0.00012349,2]
[360265665,1746678643691,-778.4,0.00012349,2]
[360265666,1746678643700,-1999.07,0.00012349,2]
[360265667,1746678643710,-400.0,0.00012349,2]
[360265668,1746678643720,-400.0,0.00012349,2]
[360265669,1746678643729,-400.0,0.00012349,2]
[360265670,1746678643739,-1304.54,0.00012349,2]
[360265671,1746678643748,-916.35,0.00012349,2]
[360265672,1746678643759,-1429.82,0.00012349,2]
[360265673,1746678643768,-708.51,0.00012349,2]
[360265674,1746678643778,-400.0,0.00012349,2]
[360265676,1746678643787,-138.96822153,0.00012349,2]
[360265728,1746678857872,250.0,0.00011974,2]
[360265730,1746678917523,1000.0,0.00011973,2]
[360265735,1746679098034,24900.0,0.00011168,2]
[360265743,1746679510232,250.0,0.00011121,2]
[360265752,1746679813849,1000.0,0.00011971,2]
[360265786,1746679832140,-300.0,0.0001207,2]
[360265787,1746679832151,-1200.0,0.0001207,2]
[360265788,1746679832161,-652.31615169,0.0001207,2]
[360265789,1746679832172,-300.0,0.0001207,2]
[360265790,1746679832181,-507.15,0.00012071,2]
[360265791,1746679832192,-400.0,0.00012071,2]
[360265792,1746679832202,-400.0,0.00012071,2]
[360265793,1746679832212,-1284.32,0.00012071,2]
[360265794,1746679832222,-400.0,0.00012071,2]
[360265795,1746679832233,-674.81,0.00012071,2]
[360265796,1746679832242,-3902.06,0.00012071,2]
[360265797,1746679832252,-709.22,0.00012071,2]
[360265798,1746679832265,-400.0,0.00012071,2]
[360265799,1746679832275,-1136.53,0.00012071,2]
[360265800,1746679832286,-400.0,0.00012071,2]
[360265801,1746679832296,-1093.59,0.00012071,2]
[360265802,1746679832307,-400.0,0.00012071,2]
[360265803,1746679832317,-400.0,0.00012071,2]
[360265804,1746679832327,-1553.89,0.00012071,2]
[360265805,1746679832337,-400.0,0.00012072,2]
[360265806,1746679832347,-400.0,0.00012072,2]
[360265807,1746679832357,-400.0,0.00012072,2]
[360265808,1746679832367,-400.0,0.00012072,2]
[360265810,1746679832378,-861.05,0.00012072,2]
[360265812,1746679832387,-466.39,0.00012072,2]
[360265814,1746679832396,-400.0,0.00012072,2]
[360265815,1746679832406,-403.85,0.00012072,2]
[360265817,1746679832416,-696.91,0.00012072,2]
[360265819,1746679832426,-495.89766176,0.00012072,2]
[360265821,1746679832436,-400.0,0.00012072,2]
[360265822,1746679832447,-400.0,0.00012072,2]
[360265824,1746679832457,-268.64888684,0.00012072,2]
[360266129,1746679840392,-1141.16,0.00012071,2]
[360266131,1746679840403,-241.17111316,0.00012072,2]
[360266133,1746679840413,-400.0,0.00012072,2]
[360266135,1746679840423,-400.0,0.00012072,2]
[360266137,1746679840434,-400.0,0.00012072,2]
[360266139,1746679840443,-1249.32,0.00012072,2]
[360266141,1746679840453,-429.44,0.00012072,2]
[360266143,1746679840462,-618.85,0.00012072,2]
[360266145,1746679840472,-400.0,0.00012072,2]
[360266147,1746679840482,-702.26,0.00012072,2]
[360266149,1746679840491,-400.0,0.00012072,2]
[360266151,1746679840501,-1090.81,0.00012072,2]
[360266153,1746679840513,-400.0,0.00012072,2]
[360266155,1746679840522,-400.0,0.00012072,2]
[360266157,1746679840531,-400.0,0.00012072,2]
[360266159,1746679840541,-170.04098142,0.00012072,2]
[360266161,1746679840550,-451.06,0.00012072,2]
[360266163,1746679840559,-901.61,0.00012072,2]
[360266165,1746679840570,-400.0,0.00012072,2]
[360266167,1746679840579,-400.0,0.00012072,2]
[360266169,1746679840588,-1756.12,0.00012072,2]
[360266171,1746679840597,-4624.97,0.00012072,2]
[360266173,1746679840606,-400.0,0.00012072,2]
[360266175,1746679840616,-400.0,0.00012072,2]
[360266177,1746679840625,-400.0,0.00012072,2]
[360266179,1746679840634,-4995.36,0.00012072,2]
[360266181,1746679840643,-400.0,0.00012072,2]
[360266183,1746679840653,-400.0,0.00012072,2]
[360266185,1746679840662,-1195.83,0.00012072,2]
[360266186,1746679840671,-1984.14,0.00012072,2]
[360266188,1746679840680,-400.0,0.00012072,2]
[360266190,1746679840689,-839.98,0.00012072,2]
[360266192,1746679840698,-400.0,0.00012072,2]
[360266194,1746679840708,-400.0,0.00012072,2]
[360266196,1746679840717,-488.53,0.00012072,2]
[360266198,1746679840726,-1310.67,0.00012072,2]
[360266200,1746679840735,-649.47,0.00012072,2]
[360266202,1746679840744,-400.0,0.00012072,2]
[360266204,1746679840753,-400.0,0.00012072,2]
[360266206,1746679840762,-1023.64,0.00012072,2]
[360266208,1746679840771,-400.0,0.00012072,2]
[360266210,1746679840780,-3305.6,0.00012072,2]
[360266212,1746679840790,-1131.06,0.00012072,2]
[360266214,1746679840799,-1040.03,0.00012072,2]
[360266216,1746679840808,-457.52,0.00012072,2]
[360266217,1746679840817,-488.31025598,0.00012072,2]
[360266219,1746679840827,-450.65,0.00012072,2]
[360266221,1746679840836,-400.0,0.00012072,2]
[360266223,1746679840845,-618.45,0.00012072,2]
[360266225,1746679840854,-1202.14,0.00012072,2]
[360266227,1746679840863,-400.0,0.00012072,2]
[360266229,1746679840872,-400.0,0.00012072,2]
[360266231,1746679840882,-400.0,0.00012072,2]
[360266233,1746679840891,-400.5,0.00012072,2]
[360266235,1746679840901,-400.0,0.00012072,2]
[360266237,1746679840911,-400.0,0.00012073,2]
[360266238,1746679840923,-400.0,0.00012073,2]
[360266239,1746679840933,-400.0,0.00012073,2]
[360266240,1746679840942,-450.86866779,0.00012073,2]
[360266241,1746679840952,-502.22,0.00012073,2]
[360266242,1746679840961,-400.0,0.00012073,2]
[360266243,1746679840975,-1969.12,0.00012073,2]
[360266244,1746679840987,-623.05,0.00012073,2]
[360266245,1746679840997,-400.0,0.00012073,2]
[360266246,1746679841006,-400.0,0.00012073,2]
[360266247,1746679841019,-400.0,0.00012073,2]
[360266248,1746679841029,-400.0,0.00012073,2]
[360266249,1746679841040,-400.0,0.00012073,2]
[360266250,1746679841051,-420.68224286,0.00012073,2]
[360266251,1746679841061,-400.0,0.00012073,2]
[360266252,1746679841071,-400.0,0.00012073,2]
[360266253,1746679841081,-400.0,0.00012073,2]
[360266254,1746679841090,-400.0,0.00012073,2]
[360266255,1746679841100,-400.0,0.00012073,2]
[360266257,1746679841109,-400.0,0.00012073,2]
[360266259,1746679841118,-711.76,0.00012073,2]
[360266261,1746679841127,-400.0,0.00012073,2]
[360266263,1746679841137,-474.75,0.00012073,2]
[360266265,1746679841146,-555.12,0.00012073,2]
[360266267,1746679841156,-660.44,0.00012073,2]
[360266269,1746679841166,-400.0,0.00012073,2]
[360266271,1746679841176,-807.88,0.00012073,2]
[360266273,1746679841186,-748.5,0.00012073,2]
[360266275,1746679841195,-501.7,0.00012073,2]
[360266277,1746679841204,-400.0,0.00012073,2]
[360266279,1746679841214,-400.0,0.00012073,2]
[360266281,1746679841224,-2221.04,0.00012073,2]
[360266283,1746679841233,-400.0,0.00012073,2]
[360266285,1746679841243,-1717.03,0.00012073,2]
[360266286,1746679841253,-564.8,0.00012073,2]
[360266288,1746679841263,-400.0,0.00012073,2]
[360266290,1746679841272,-732.1,0.00012073,2]
[360266292,1746679841282,-400.0,0.00012073,2]
[360266294,1746679841292,-627.04,0.00012073,2]
[360266296,1746679841304,-400.0,0.00012073,2]
[360266298,1746679841313,-1486.18,0.00012073,2]
[360266300,1746679841323,-862.18,0.00012073,2]
[360266302,1746679841334,-467.83317321,0.00012074,2]
[360266304,1746679841344,-401.87,0.00012074,2]
[360266306,1746679841354,-400.0,0.00012074,2]
[360266308,1746679841363,-493.61,0.00012074,2]
[360266310,1746679841373,-375.09614548,0.00012074,2]
[360266312,1746679841382,-429.18733982,0.00012074,2]
[360266314,1746679841392,-428.68865162,0.00012074,2]
[360266316,1746679841402,-491.94,0.00012074,2]
[360266318,1746679841411,-400.0,0.00012074,2]
[360266320,1746679841421,-533.37,0.00012074,2]
[360266322,1746679841431,-765.58,0.00012074,2]
[360266324,1746679841441,-400.0,0.00012074,2]
[360266326,1746679841450,-1131.32,0.00012074,2]
[360266328,1746679841460,-400.0,0.00012074,2]
[360266330,1746679841469,-400.0,0.00012074,2]
[360266332,1746679841479,-400.0,0.00012074,2]
[360266334,1746679841488,-400.0,0.00012074,2]
[360266336,1746679841498,-400.0,0.00012074,2]
[360266338,1746679841507,-400.0,0.00012074,2]
[360266340,1746679841517,-400.0,0.00012074,2]